bitfinex/quotes_ETHUSD_20240827
["timestamp","ask_amount","ask_price","bid_price","bid_amount"]
[1724800454902,2.412,2462.5,2460.8,0.08125605]
[1724800455065,0.32251048,2462.4,2460.9,2.4544]
[1724800455264,0.32251048,2462.4,2461.0,0.08124613]
[1724800455265,0.2412,2462.4,2461.0,0.08124613]
[1724800455486,0.2412,2462.4,2461.1,2.3868]
[1724800455487,0.08131048,2462.3,2461.1,2.3868]
[1724800455681,0.08131048,2462.3,2461.2,0.24680461]
[1724800456109,0.08131048,2462.3,2461.2,3.24680461]
[1724800456609,4.43637676,2463.3,2461.1,2.3868]
[1724800456610,2.33401048,2462.2,2461.1,2.3868]
[1724800456798,0.08131048,2462.1,2461.1,2.3868]
[1724800458007,0.55,2462.0,2461.1,2.3868]
[1724800458207,0.08131048,2461.9,2461.2,0.08124839]
[1724800458375,0.08131048,2461.9,2461.2,0.081247]
[1724800458564,0.91158048,2462.0,2461.1,2.3868]
[1724800459300,0.91158048,2462.0,2460.8,2.4266]
[1724800459607,0.91158048,2462.0,2460.0,1.27103859]
[1724800459608,4.06217,2461.8,2460.4,2.4815]
[1724800459809,0.73245616,2461.7,2460.4,2.4815]
[1724800459978,3.14867379,2461.7,2460.4,2.4815]
[1724800460327,0.55,2461.6,2460.5,0.08127807]
[1724800460624,0.08131048,2461.5,2460.5,0.08127807]
[1724800460779,0.55,2461.4,2460.5,0.33755588]
[1724800460982,0.61708106,2461.4,2460.5,0.33755588]
[1724800461176,0.08131048,2461.3,2460.5,0.33755588]
[1724800461373,0.14803865,2461.3,2460.4,2.4815]
[1724800461921,0.55,2461.2,2460.1,2.4016]
[1724800462215,0.45817075,2461.1,2460.1,2.4016]
[1724800462419,0.45817075,2461.1,2459.2,0.4068]
[1724800462420,2.3386,2460.9,2458.9,2.4016]
[1724800462577,2.3386,2460.9,2459.0,0.0813178]
[1724800462776,0.95438745,2460.8,2459.1,2.373]
[1724800463016,0.08131048,2460.7,2459.3,2.373]
[1724800463219,0.77729034,2460.7,2459.5,2.373]
[1724800463393,0.77729034,2460.7,2459.6,0.32672162]
[1724800464387,0.77729034,2460.7,2459.6,0.24542924]
[1724800464598,0.77729034,2460.7,2459.7,0.08129239]
[1724800465779,0.06668111,2460.7,2459.8,2.3132]
[1724800466017,0.08131048,2461.0,2459.8,2.3132]
[1724800466225,0.06500441,2460.6,2459.8,2.3132]
[1724800466392,0.08131048,2461.0,2459.8,2.3132]
[1724800466729,0.08131048,2461.0,2459.8,2.86906292]
[1724800466730,0.63134153,2461.0,2459.8,2.86906292]
[1724800466933,0.06500441,2460.9,2459.8,2.86906292]
[1724800467134,0.08131048,2460.8,2459.8,2.86906292]
[1724800467731,0.06500441,2460.7,2459.8,2.86906292]
[1724800467892,0.06500441,2460.7,2459.9,0.58690629]
[1724800468330,0.55,2460.6,2459.8,2.3132]
[1724800468529,0.14631489,2460.7,2459.8,2.3132]
[1724800468736,0.08131048,2460.9,2459.8,2.3132]
[1724800469123,0.06423958,2460.8,2459.8,2.3132]
[1724800469833,0.06423958,2460.8,2459.8,9.6832]
[1724800470139,0.06423958,2460.8,2459.9,3.0]
[1724800470631,0.06423958,2460.7,2459.9,3.0]
[1724800470929,0.06423958,2460.7,2460.0,1.26832]
[1724800471101,0.06423958,2460.6,2460.1,2.2903]
[1724800471298,0.06423958,2460.6,2460.2,0.08128169]
[1724800471496,0.4068,2461.9,2460.3,2.2903]
[1724800471729,2.4291,2462.0,2460.5,2.2903]
[1724800472039,0.08131048,2461.9,2460.6,0.08126577]
[1724800472208,4.46928115,2461.9,2460.5,2.2903]
[1724800472535,0.40736115,2461.9,2460.5,2.37156754]
[1724800472700,0.28364611,2461.8,2460.6,0.97415675]
[1724800473033,0.08131048,2461.7,2460.6,0.97415675]
[1724800473340,0.14555006,2461.7,2460.7,2.4362]
[1724800473636,0.08131048,2462.2,2460.9,2.4125]
[1724800473834,0.08131048,2462.2,2461.0,2.49374823]
[1724800473835,0.06423958,2461.6,2461.0,2.49374823]
[1724800474009,0.08131048,2462.2,2461.0,2.49374823]
[1724800474219,0.08131048,2462.2,2461.1,0.98637482]
[1724800474408,0.08131048,2462.2,2461.2,2.3665]
[1724800474409,0.06423958,2462.1,2461.2,2.3665]
[1724800474608,0.08131048,2462.1,2461.2,2.3665]
[1724800474836,0.08131048,2462.5,2461.2,2.3665]
[1724800475110,4.80256904,2462.5,2461.2,2.3665]
[1724800475334,0.06423958,2462.4,2461.2,2.3665]
[1724800475511,0.08131048,2462.3,2461.2,2.3665]
[1724800475722,2.4165,2462.1,2460.9,2.3159]
[1724800476016,0.69555006,2462.0,2460.9,2.3159]
[1724800476643,3.69555006,2462.0,2460.9,2.3159]
[1724800478519,0.08131048,2461.9,2460.9,2.3159]
[1724800478850,0.55,2461.8,2460.9,2.3159]
[1724800479047,0.08131048,2461.7,2460.9,2.54749]
[1724800479415,0.61423958,2461.8,2461.1,2.4332]
[1724800479416,0.06423958,2461.8,2461.1,2.4332]
[1724800479616,0.08131048,2462.2,2461.1,2.4332]
[1724800479853,0.06423958,2461.7,2461.2,0.54332]
[1724800480154,0.43811181,2462.2,2461.2,3.54332]
[1724800480311,0.08131048,2462.2,2461.2,3.54332]
[1724800480923,0.08131048,2462.2,2461.3,2.455]
[1724800481320,0.08131048,2462.7,2461.5,2.455]
[1724800481754,0.06702714,2462.6,2461.5,2.455]
[1724800481974,0.08131048,2462.5,2461.5,3.4375]
[1724800482441,0.06713293,2462.4,2461.5,2.455]
[1724800482648,0.08131048,2462.3,2461.5,2.455]
[1724800482847,0.55,2462.2,2461.5,2.455]
[1724800483025,0.08131048,2462.1,2461.5,2.455]
[1724800483354,0.08131048,2462.1,2461.5,2.7005]
[1724800483554,3.08131048,2462.7,2461.6,0.08124155]
[1724800483741,0.61713293,2462.6,2461.5,2.7005]
[1724800483946,0.08131048,2462.5,2461.5,2.7005]
[1724800484118,0.61707416,2462.4,2461.6,1.00705]
[1724800484321,0.08131048,2462.3,2461.6,1.00705]
[1724800484848,0.06707416,2462.2,2461.6,1.00705]
[1724800487855,0.06707416,2462.2,2461.6,1.08828447]
[1724800488855,0.06707416,2462.2,2461.6,1.00705]
[1724800489150,0.06707416,2462.2,2461.5,2.7005]
[1724800490421,0.14838464,2462.2,2461.5,2.455]
[1724800493624,0.14838464,2462.2,2461.2,6.02012]
[1724800494024,0.06707416,2462.2,2461.4,2.4768]
[1724800494253,0.06707416,2462.2,2461.5,0.08123427]
[1724800494434,0.55,2462.4,2461.5,0.3370377]
[1724800494736,0.08131048,2462.3,2461.5,0.3370377]
[1724800494950,0.06743858,2462.2,2461.5,0.3370377]
[1724800495923,0.14874906,2462.2,2461.5,0.3370377]
[1724800496152,0.06743858,2462.2,2461.5,0.33700481]
[1724800496525,0.55,2462.6,2461.5,0.33700481]
[1724800496754,0.39568,2462.5,2461.5,0.33700481]
[1724800496960,0.61532523,2462.4,2461.5,0.33700481]
[1724800497856,0.06532523,2462.4,2461.6,2.38]
[1724800498058,0.06532523,2462.4,2461.7,0.08122735]
[1724800498264,0.06532523,2462.4,2461.8,2.38]
[1724800498467,2.435,2463.2,2461.9,0.32734508]
[1724800498841,0.06532523,2463.1,2461.9,0.32734508]
[1724800499444,0.55,2463.0,2461.9,0.32734508]
[1724800499947,2.435,2463.2,2461.9,0.32734508]
[1724800499948,0.55,2463.1,2461.9,0.32734508]
[1724800500251,0.37981048,2463.0,2461.8,2.38]
[1724800500497,0.55,2462.9,2461.8,2.38]
[1724800500766,2.435,2462.7,2461.8,2.38]
[1724800500946,0.69756414,2462.6,2461.8,2.38]
[1724800501151,0.31325641,2462.5,2461.8,2.38]
[1724800501341,0.69763464,2462.4,2461.8,2.38]
[1724800501878,0.69763464,2462.4,2461.5,9.6781]
[1724800502040,0.14763464,2462.4,2461.5,7.37]
[1724800502241,0.06632416,2462.4,2461.7,2.3394]
[1724800502445,0.08131048,2462.8,2461.8,0.08122852]
[1724800502672,0.64955153,2462.8,2461.8,0.31576285]
[1724800502986,0.69762289,2462.7,2461.8,0.31576285]
[1724800503182,0.69762289,2462.7,2461.7,2.3394]
[1724800503781,2.3415,2462.6,2461.5,7.37]
[1724800503942,0.63131048,2462.5,2461.5,7.37]
[1724800504138,0.06631241,2462.4,2460.6,2.3341]
[1724800504347,0.63131048,2462.3,2460.6,2.3341]
[1724800504691,0.08131048,2462.2,2460.6,2.3341]
[1724800504851,0.55,2462.1,2460.6,2.3341]
[1724800505049,0.55,2462.3,2460.6,2.3341]
[1724800505050,0.08131048,2462.0,2460.6,2.3341]
[1724800505250,0.06631241,2462.0,2460.8,2.3341]
[1724800505454,0.08131048,2462.2,2460.9,2.3341]
[1724800505687,0.06631241,2461.9,2461.1,2.3341]
[1724800505866,0.08131048,2462.2,2461.1,2.3341]
[1724800506051,0.08131048,2462.2,2461.2,2.3341]
[1724800506052,0.06631241,2461.8,2461.2,2.3341]
[1724800506388,0.06631241,2461.7,2461.4,2.3341]
[1724800506764,0.08131048,2462.3,2461.4,5.3341]
[1724800506964,0.61631241,2462.2,2461.4,2.3341]
[1724800507366,0.08131048,2462.1,2461.4,2.3341]
[1724800508021,0.06631241,2462.0,2461.4,2.3341]
[1724800509053,0.08131048,2461.9,2460.8,2.3954]
[1724800509262,0.55,2461.8,2460.8,2.3954]
[1724800509478,2.51311048,2461.7,2460.0,2.3954]
[1724800509761,2.51311048,2461.7,2460.1,0.08127575]
[1724800509983,2.51311048,2461.7,2459.9,7.37]
[1724800509984,3.86289058,2461.6,2460.2,2.3954]
[1724800510192,0.08131048,2461.5,2460.2,2.3954]
[1724800510506,2.4318,2461.3,2460.2,2.3954]
[1724800510709,0.38607001,2461.2,2460.2,2.3954]
[1724800510858,0.55,2461.1,2460.2,2.3954]
[1724800511055,0.08131048,2461.0,2460.2,2.3954]
[1724800511254,0.55,2460.9,2460.2,2.3954]
[1724800511505,0.08131048,2460.8,2460.2,2.3954]
[1724800511663,0.14710579,2460.8,2460.2,2.3954]
[1724800512070,0.06579531,2460.8,2460.2,2.63494]
[1724800512492,0.08131048,2461.4,2460.2,2.63494]
[1724800512699,0.06579531,2460.7,2460.3,3.0]
[1724800512882,0.08131048,2461.2,2460.3,3.563494]
[1724800513271,0.06579531,2461.1,2460.3,3.563494]
[1724800514015,2.99981048,2461.0,2459.4,2.4133]
[1724800514502,3.06429048,2460.9,2459.6,2.4133]
[1724800514704,0.63131048,2460.8,2459.8,2.4133]
[1724800515007,3.67070058,2460.9,2459.3,7.37]
[1724800515008,0.08131048,2460.9,2459.9,0.08128768]
[1724800515212,0.06429048,2460.8,2460.0,2.4133]
[1724800515559,0.06429048,2460.8,2460.1,0.08128106]
[1724800515698,0.08131048,2461.2,2460.2,2.4133]
[1724800515897,0.08131048,2461.2,2460.3,0.24945811]
[1724800516081,0.08131048,2461.2,2460.3,0.33073807]
[1724800516284,0.06429048,2461.1,2460.3,0.33073807]
[1724800516502,0.14560096,2461.1,2460.3,0.33073807]
[1724800516702,2.3685,2461.5,2460.3,0.33073807]
[1724800516703,0.08131048,2461.4,2460.3,0.33073807]
[1724800516884,0.31816048,2461.4,2460.3,0.33073807]
[1724800517094,0.06429048,2461.3,2460.3,0.33073807]
[1724800517421,0.08131048,2461.2,2460.3,0.33073807]
[1724800517981,0.06429048,2461.1,2460.3,0.33073807]
[1724800518469,0.06429048,2461.1,2460.3,0.24945811]
[1724800519010,0.06429048,2461.1,2460.3,0.33073183]
[1724800519976,0.06429048,2461.1,2460.3,0.24945811]
[1724800520894,0.06429048,2461.1,2460.4,0.0812737]
[1724800521280,0.06429048,2461.1,2460.5,2.4678]
[1724800521481,0.08131048,2461.8,2460.7,2.4678]
[1724800521820,0.08131048,2461.8,2460.4,3.0]
[1724800521821,0.08131048,2461.8,2460.9,2.4678]
[1724800522008,0.08131048,2462.1,2460.9,2.4678]
[1724800522320,0.06429048,2462.0,2461.0,0.24678]
[1724800522615,0.08131048,2461.9,2461.0,3.24678]
[1724800522817,0.08131048,2461.9,2461.1,0.571458]
[1724800523195,0.08131048,2461.9,2461.0,0.24678]
[1724800523402,0.06429048,2461.8,2460.9,2.4678]
[1724800523596,0.06429048,2461.8,2460.4,2.4678]
[1724800523597,2.3183,2461.6,2460.4,2.4678]
[1724800523924,0.08131048,2461.5,2460.5,0.27172581]
[1724800524433,0.06493728,2461.4,2460.5,0.27172581]
[1724800524906,0.08131048,2461.5,2460.5,0.27172581]
[1724800525090,0.08131048,2461.5,2460.5,3.27172581]
[1724800525293,0.08131048,2461.5,2460.6,0.57395258]
[1724800525701,0.0627441,2461.4,2460.4,2.4678]
[1724800525907,0.0627441,2461.4,2460.1,2.4962]
[1724800525908,2.45611048,2461.3,2460.1,2.4962]
[1724800526118,0.08131048,2461.2,2460.1,2.4962]
[1724800526283,3.0053,2461.1,2459.3,2.3434]
[1724800526497,3.38997153,2461.0,2459.4,0.23434]
[1724800526693,0.55,2460.9,2459.4,0.23434]
[1724800526913,0.08131048,2460.8,2459.4,0.23434]
[1724800527209,0.55,2460.7,2459.5,2.4121]
[1724800527532,0.14217113,2460.6,2459.5,2.4121]
[1724800528054,0.14217113,2460.6,2459.6,0.08129517]
[1724800528055,0.06086065,2460.6,2459.6,0.08129517]
[1724800528242,0.08131048,2460.9,2459.7,2.2504]
[1724800528544,0.08131048,2460.9,2459.7,5.2504]
[1724800528848,0.05934355,2460.8,2459.7,2.2504]
[1724800529004,0.05934355,2460.8,2459.8,0.22504]
[1724800529710,0.05934355,2460.8,2459.8,3.22504]
[1724800529921,0.05934355,2460.8,2459.9,3.0]
[1724800530111,0.05934355,2460.8,2459.8,0.22504]
[1724800533955,2.44061048,2460.7,2459.2,2.3183]
[1724800534117,2.3593,2460.6,2459.2,2.3183]
[1724800534365,0.38037153,2460.5,2459.2,2.3183]
[1724800534682,0.55,2460.4,2459.2,2.3183]
[1724800534981,0.08131048,2460.3,2459.2,2.3183]
[1724800535478,3.022,2460.2,2459.2,2.3183]
[1724800535775,3.022,2460.2,2458.9,2.3925]
[1724800535776,0.08131048,2460.1,2458.9,2.3925]
[1724800536075,0.05794375,2460.0,2458.8,7.37]
[1724800536283,0.05794375,2460.0,2458.6,2.3925]
[1724800536284,2.90061048,2459.9,2458.6,2.3925]
[1724800536486,3.29585542,2459.8,2458.6,2.63175]
[1724800536643,0.63131048,2459.7,2458.6,2.63175]
[1724800537883,0.63131048,2459.7,2458.7,3.0]
[1724800538069,2.4341,2459.6,2458.7,3.0]
[1724800538377,0.08131048,2459.5,2458.4,2.284]
[1724800538577,2.3598,2459.9,2458.4,5.284]
[1724800538578,0.08131048,2459.7,2458.4,5.284]
[1724800538950,0.08131048,2459.7,2458.5,3.0]
[1724800539290,0.08131048,2459.7,2458.6,0.5284]
[1724800539471,0.08131048,2459.7,2458.5,3.0]
[1724800539775,2.3598,2459.9,2458.6,0.08132174]
[1724800539981,0.08131048,2459.8,2458.7,2.4609]
[1724800540137,0.08131048,2459.8,2458.8,0.24609]
[1724800540492,0.08131048,2459.8,2458.8,3.24609]
[1724800540772,0.05794375,2459.7,2458.8,3.24609]
[1724800541185,0.08131048,2459.8,2458.8,3.24609]
[1724800541365,2.3598,2459.9,2458.8,3.24609]
[1724800541366,0.08131048,2459.7,2458.8,3.24609]
[1724800541540,0.08131048,2459.7,2458.9,0.570699]
[1724800541541,0.13925423,2459.7,2458.9,0.570699]
[1724800542376,0.05794375,2459.7,2458.9,0.570699]
[1724800543742,0.05794375,2459.7,2458.9,0.65201645]
[1724800544076,0.08131048,2459.8,2459.0,0.38981065]
[1724800544242,2.3598,2459.9,2459.1,0.08131744]
[1724800545737,3.0,2460.4,2459.2,2.3907]
[1724800545738,2.4636,2460.2,2459.2,2.3907]
[1724800545974,2.4636,2460.6,2459.3,0.23907]
[1724800546271,0.13724125,2460.5,2459.4,0.08130074]
[1724800547579,0.55,2460.4,2459.4,0.08130074]
[1724800547780,0.55,2460.4,2459.4,2.63140781]
[1724800548698,0.08131048,2460.3,2459.4,2.63140781]
[1724800549067,0.08131048,2460.5,2459.4,2.63140781]
[1724800549501,0.08131048,2460.5,2459.5,2.4638]
[1724800549809,0.08131048,2460.5,2459.6,0.08129406]
[1724800550105,0.08131048,2460.5,2459.6,0.59081417]
[1724800550274,2.2661,2460.9,2459.7,2.4638]
[1724800550479,2.2661,2460.9,2459.8,0.08128705]
[1724800550670,2.2661,2460.9,2459.8,5.66574777]
[1724800551007,0.08131048,2460.8,2459.8,5.58446072]
[1724800551561,0.08131048,2460.8,2459.6,20.29952011]
[1724800551562,2.3612,2460.7,2459.6,20.29952011]
[1724800551773,0.08131048,2460.6,2459.6,20.29952011]
[1724800551983,0.55,2460.5,2459.6,20.29952011]
[1724800552203,3.08131048,2460.6,2459.7,0.08129931]
[1724800552404,0.08131048,2460.6,2459.7,4.46668194]
[1724800556300,0.08131048,2460.6,2459.6,7.87952011]
[1724800556501,0.08131048,2460.6,2459.6,7.37]
[1724800556502,0.55,2460.5,2459.6,7.37]
[1724800556663,2.38491048,2460.4,2459.6,7.37]
[1724800556869,0.1378417,2460.4,2459.6,7.37]
[1724800557264,2.3036,2460.7,2459.6,7.37]
[1724800557265,0.08131048,2460.6,2459.7,0.08128979]
[1724800557459,0.08131048,2460.6,2459.8,2.3411]
[1724800557763,0.08131048,2460.6,2459.9,0.0812901]
[1724800558196,0.08131048,2460.6,2459.8,3.0]
[1724800558378,2.3036,2460.4,2459.6,7.37]
[1724800558565,0.08131048,2460.3,2459.6,7.37]
[1724800558967,2.3036,2460.2,2458.4,45.54454467]
[1724800559163,0.08131048,2460.1,2458.4,9.7111]
[1724800559391,0.37480153,2460.1,2458.5,2.95411]
[1724800559702,0.60710812,2460.0,2458.6,2.2602]
[1724800559904,0.08131048,2459.9,2458.6,2.2602]
[1724800560076,0.55,2459.8,2458.7,0.521431]
[1724800560412,2.37751048,2459.7,2458.7,0.521431]
[1724800561289,0.55,2459.6,2458.5,2.95411]
[1724800561467,2.2962,2459.7,2458.7,2.2602]
[1724800561665,0.05635457,2459.5,2458.8,0.23415309]
[1724800561870,0.08131048,2459.8,2458.8,0.23415309]
[1724800562077,2.2962,2460.0,2458.8,0.23415309]
[1724800562408,0.08131048,2459.9,2458.8,0.23415309]
[1724800562610,2.2962,2460.0,2458.8,0.23415309]
[1724800562972,2.4404,2460.6,2459.0,2.4701]
[1724800563172,0.08131048,2460.5,2459.2,2.4701]
[1724800563369,2.4404,2460.6,2459.3,0.08129557]
[1724800563594,2.2627,2461.6,2459.5,2.3631]
[1724800563821,0.08131048,2461.5,2459.6,4.73567212]
[1724800564015,2.4656,2462.0,2460.1,4.53471752]
[1724800564174,2.4656,2462.0,2460.2,5.8877]
[1724800564175,0.08131048,2461.9,2460.2,5.8877]
[1724800564385,0.33600153,2461.9,2460.3,1.04224175]
[1724800564590,0.33600153,2461.9,2460.4,2.8877]
[1724800564906,0.33600153,2461.9,2460.5,3.0]
[1724800565816,0.33600153,2461.9,2460.4,5.3377]
[1724800565998,0.33600153,2461.9,2460.5,0.63799418]
[1724800566188,0.33600153,2461.9,2459.9,35.0]
[1724800566189,2.31701924,2461.8,2459.9,2.3333]
[1724800566396,0.08131048,2461.7,2459.9,2.3333]
[1724800566613,0.63131048,2461.7,2459.9,5.3333]
[1724800566831,4.49661256,2461.7,2460.0,0.57401]
[1724800566993,2.4571,2461.5,2460.0,3.57401]
[1724800567196,0.63131048,2461.4,2460.0,3.57401]
[1724800567394,0.05631924,2461.3,2460.0,3.57401]
[1724800567689,0.05631924,2461.3,2460.0,0.57401]
[1724800567690,2.4571,2461.1,2460.0,0.57401]
[1724800567915,0.08131048,2461.0,2459.9,2.3333]
[1724800568437,0.05631924,2460.9,2459.9,2.3333]
[1724800570033,0.08131048,2461.4,2459.9,2.3333]
[1724800570233,0.08131048,2461.4,2460.0,0.23333]
[1724800570391,0.08131048,2461.4,2460.1,0.55]
[1724800570935,0.08131048,2461.4,2460.1,35.55]
[1724800571115,0.08131048,2461.4,2460.2,3.0]
[1724800571290,0.08131048,2461.4,2460.1,0.55]
[1724800571489,0.08131048,2461.4,2460.2,0.378333]
[1724800572159,0.08131048,2461.4,2460.3,2.3486]
[1724800572329,3.08131048,2461.8,2460.4,7.37]
[1724800572535,1.18515153,2461.7,2460.5,4.27186]
[1724800572728,2.4571,2461.6,2460.4,7.37]
[1724800572969,2.4571,2461.4,2460.4,7.37]
[1724800573200,0.63131048,2461.3,2460.0,7.60333]
[1724800573462,0.08131048,2461.2,2460.0,7.60333]
[1724800573668,0.55,2461.1,2460.0,7.60333]
[1724800573965,0.08131048,2461.0,2460.0,7.60333]
[1724800574169,0.13997191,2461.0,2460.0,7.60333]
[1724800574339,0.08131048,2461.0,2460.1,0.995193]
[1724800575471,0.08131048,2461.2,2460.1,3.995193]
[1724800575637,0.55,2461.1,2460.1,3.995193]
[1724800575875,0.08131048,2461.0,2460.1,3.995193]
[1724800576863,0.08131048,2461.0,2460.2,1.1598523]
[1724800577071,0.08131048,2461.2,2460.2,1.1598523]
[1724800577398,0.08131048,2461.2,2460.1,3.995193]
[1724800577399,2.3697,2461.1,2460.1,3.995193]
[1724800577620,2.3697,2461.1,2460.1,3.0]
[1724800577621,0.08131048,2461.0,2460.1,3.0]
[1724800577914,2.45101048,2461.1,2460.1,3.0]
[1724800578219,0.24510105,2461.0,2460.1,4.060333]
[1724800578391,0.08131048,2461.0,2460.1,6.533133]
[1724800578700,2.45101048,2461.1,2460.1,6.533133]
[1724800578904,2.45101048,2461.1,2460.2,1.4136463]
[1724800579369,2.3697,2461.1,2460.2,1.4136463]
[1724800580001,2.3697,2461.5,2460.2,1.4136463]
[1724800580285,2.3697,2461.5,2460.3,0.76991093]
[1724800583395,2.3697,2461.5,2460.3,0.68864463]
[1724800584581,2.3697,2461.5,2460.5,2.33]
[1724800584924,2.3697,2461.5,2460.6,0.08125153]
[1724800585628,2.3697,2461.5,2460.5,5.33]
[1724800585782,2.3697,2461.5,2460.6,1.27]
[1724800586100,2.3697,2461.5,2460.6,4.27]
[1724800587927,2.4471,2462.3,2460.7,0.08125163]
[1724800588230,2.4471,2462.1,2460.9,7.37]
[1724800588426,2.4471,2461.9,2460.9,9.349]
[1724800588719,0.1405601,2461.8,2460.9,9.349]
[1724800589980,0.1405601,2461.8,2460.9,7.37]
[1724800589981,3.07841048,2461.7,2460.9,7.37]
[1724800590621,0.05924962,2461.6,2460.9,7.37]
[1724800591934,0.1405601,2461.6,2460.9,7.37]
[1724800593197,0.55284105,2462.2,2460.9,7.37]
[1724800593198,2.3079,2461.5,2460.9,7.37]
[1724800593402,0.08131048,2461.4,2460.4,7.37]
[1724800593624,2.3079,2461.3,2460.1,7.37]
[1724800593822,2.3489,2461.1,2460.2,0.737]
[1724800594024,0.63131048,2461.0,2460.2,0.737]
[1724800594705,0.63131048,2461.0,2460.1,7.37]
[1724800594706,2.3489,2460.9,2460.1,7.37]
[1724800595046,2.3489,2460.9,2459.8,12.42]
[1724800595047,0.08131048,2460.8,2459.9,7.37]
[1724800595349,0.38531295,2460.8,2460.0,1.979]
[1724800595640,0.1411247,2460.7,2460.0,1.979]
[1724800596604,0.1411247,2460.7,2459.9,7.37]
[1724800596605,2.3952,2460.6,2459.9,7.37]
[1724800596847,0.08131048,2460.5,2459.9,7.37]
[1724800597047,0.14019536,2460.5,2459.9,7.37]
[1724800599629,0.05888488,2460.5,2459.9,7.37]
[1724800599841,0.14019536,2460.5,2460.0,1.979]
[1724800600026,0.05888488,2460.5,2460.0,1.979]
[1724800600807,0.14019536,2460.5,2459.9,7.37]
[1724800601526,0.14019536,2460.5,2459.5,7.37]
[1724800601722,2.4918,2460.4,2459.5,7.37]
[1724800602079,0.08131048,2460.3,2459.5,7.37]
[1724800602223,0.33862153,2460.3,2459.5,7.37]
[1724800602428,2.4918,2460.1,2458.8,19.99]
[1724800602627,2.4918,2459.9,2458.8,7.57]
[1724800602863,0.08131048,2459.8,2458.9,0.757]
[1724800606152,2.4204,2459.7,2458.8,7.57]
[1724800606357,2.4204,2459.5,2458.8,7.57]
[1724800606676,0.08131048,2459.4,2458.8,7.57]
[1724800607126,0.05590719,2459.3,2458.8,7.57]
[1724800608434,0.08131048,2459.4,2458.8,7.57]
[1724800608633,0.38648153,2459.4,2458.8,7.57]
[1724800609267,2.2689,2459.3,2458.8,0.2]
[1724800609472,0.08131048,2459.2,2458.8,0.2]
[1724800609690,0.13721767,2459.2,2458.8,0.2]
[1724800611587,2.3461,2459.0,2458.8,0.2]
[1724800611772,2.42741048,2458.9,2457.4,2.10984606]
[1724800612091,0.55,2458.8,2457.5,0.33694652]
[1724800612247,2.3461,2458.6,2457.5,0.33694652]
[1724800612443,0.63131048,2458.5,2457.5,0.33694652]
[1724800612673,0.35297685,2458.4,2457.5,0.33694652]
[1724800612872,0.08131048,2458.3,2457.5,0.33694652]
[1724800613069,2.3587,2458.1,2456.7,1.04369395]
[1724800613310,0.08131048,2458.0,2456.7,0.4068]
[1724800613589,0.13648737,2458.0,2456.9,0.63713328]
[1724800613779,0.13648737,2458.0,2456.5,0.41166803]
[1724800613976,0.13648737,2458.0,2456.5,0.81846803]
[1724800614166,0.13648737,2458.0,2457.4,0.08138001]
[1724800614167,0.05517689,2458.0,2457.4,0.08138001]
[1724800614367,0.05517689,2458.0,2457.4,0.38342913]
[1724800614694,3.0202,2458.5,2457.4,0.38342913]
[1724800614695,2.4702,2458.5,2457.5,0.08136545]
[1724800614861,2.4702,2458.5,2457.6,2.3822]
[1724800614862,0.05185339,2457.9,2457.6,2.3822]
[1724800615062,0.05185339,2457.9,2457.5,3.0]
[1724800615262,0.32833048,2458.4,2457.5,3.0]
[1724800615462,0.05185339,2457.8,2457.3,0.0813702]
[1724800615690,2.4702,2458.3,2457.3,0.08137015]
[1724800615869,2.4702,2458.3,2457.2,2.3822]
[1724800615870,0.05185339,2457.7,2457.2,2.3822]
[1724800616065,2.4702,2458.3,2457.3,0.53822]
[1724800616294,2.4702,2458.3,2457.3,3.53822]
[1724800616492,0.05034623,2458.2,2457.4,0.08136582]
[1724800616699,0.05034623,2458.2,2457.4,0.60017858]
[1724800616857,0.05034623,2458.2,2457.5,2.3781]
[1724800617063,0.05034623,2458.2,2457.7,2.3781]
[1724800617263,2.3533,2458.9,2457.7,2.93215722]
[1724800617586,0.23533,2458.8,2457.8,3.29321572]
[1724800617801,2.3533,2458.9,2457.8,3.29321572]
[1724800621791,2.3501,2459.3,2458.0,2.3731]
[1724800621995,0.23501,2459.2,2458.1,0.32678188]
[1724800622168,2.3501,2459.3,2458.1,0.24544411]
[1724800622374,2.3501,2459.3,2458.1,3.24544411]
[1724800622770,2.3501,2459.3,2458.2,0.0813308]
[1724800622984,2.3501,2459.3,2458.3,0.08132929]
[1724800623313,2.3437,2460.1,2458.4,0.08133072]
[1724800623521,2.3437,2459.9,2458.4,0.28323503]
[1724800623803,4.06398,2460.7,2458.3,5.2593]
[1724800623804,2.3437,2459.7,2458.3,5.2593]
[1724800624015,0.08131048,2459.8,2458.3,2.2593]
[1724800624016,2.3437,2459.5,2458.3,2.2593]
[1724800624197,0.32381153,2459.4,2458.3,3.54677441]
[1724800624374,0.32381153,2459.4,2458.4,3.0]
[1724800624920,0.32381153,2459.4,2458.5,0.08133416]
[1724800625221,0.32381153,2459.4,2458.4,3.0]
[1724800625425,0.32381153,2459.4,2458.4,3.65467744]
[1724800625925,0.05172529,2459.3,2458.5,0.08133306]
[1724800626137,0.05172529,2459.3,2458.4,3.65467744]
[1724800626630,0.05172529,2459.3,2458.6,0.08133306]
[1724800627192,2.4296,2459.1,2458.4,3.65467744]
[1724800627518,2.4296,2459.1,2458.4,20.48467744]
[1724800628085,0.08131048,2459.0,2458.4,0.65467744]
[1724800628364,0.08131048,2459.0,2458.2,3.0]
[1724800628530,0.08131048,2459.0,2458.1,3.24544411]
[1724800629594,2.3567,2459.6,2458.1,3.24544411]
[1724800629788,2.3567,2459.6,2458.2,0.56850441]
[1724800629789,0.08131048,2459.5,2458.2,0.56850441]
[1724800630541,2.3567,2459.4,2458.2,0.56850441]
[1724800630691,0.08131048,2459.3,2458.2,0.56850441]
[1724800630892,0.32511153,2459.3,2458.2,0.56850441]
[1724800631218,0.08131048,2459.2,2458.2,0.56850441]
[1724800631532,2.4506,2459.1,2458.1,3.24544411]
[1724800631823,0.08131048,2459.0,2458.1,3.24544411]
[1724800632237,0.08131048,2459.0,2458.2,0.08134541]
[1724800632441,2.4506,2459.1,2458.2,0.08134541]
[1724800632636,2.69566,2459.1,2458.2,0.65798436]
[1724800632844,2.69566,2459.1,2458.3,0.08134523]